[Event "23rd ETCC Women 2021"]
[Site "Catez"]
[Date "2021.11.14"]
[Round "3.38"]
[White "Machlik, Monika"]
[Black "Hagarova, Zuzana"]
[Result "0-1"]
[ECO "A43"]
[WhiteElo "2096"]
[BlackElo "2292"]
[Annotator "ChessBase"]
[PlyCount "116"]
[EventDate "2021.11.08"]
[EventType "team-tourn"]
[EventCountry "SLO"]
[SourceTitle "playchess.com"]
[Source "ChessBase"]
[SourceQuality "1"]
[WhiteTeam "Norway"]
[BlackTeam "Slovakia"]
[WhiteTeamCountry "NOR"]
[BlackTeamCountry "SVK"]
[TimeControl "40/5400+30:1800+30"]

1. d4 {[%emt 0:00:03]} Nf6 {[%emt 0:00:09]} 2. Nf3 {[%emt 0:00:04]} g6 {
[%emt 0:00:11]} 3. g3 {[%emt 0:00:06]} Bg7 {[%emt 0:00:16]} 4. Bg2 {[%emt 0:00:
14]} O-O {[%emt 0:01:30]} 5. O-O {[%emt 0:00:37]} c5 {[%emt 0:01:26]} 6. d5 {
[%emt 0:01:13]} d6 {[%emt 0:04:32]} 7. Nc3 {[%emt 0:04:24]} Na6 {[%emt 0:05:20]
} 8. h3 {[%emt 0:15:32]} Rb8 {[%emt 0:10:51]} 9. a4 {[%emt 0:03:21]} Nc7 {
[%emt 0:02:48]} 10. Re1 {[%emt 0:18:48]} b6 {[%emt 0:01:02]} 11. e4 {[%emt 0:
00:48]} Bb7 {[%emt 0:01:30]} 12. Nb5 {[%emt 0:16:16]} a6 {[%emt 0:01:38]} 13.
Nxc7 {[%emt 0:00:23]} Qxc7 {[%emt 0:00:06]} 14. Bg5 {[%emt 0:08:23]} Rfe8 {
[%emt 0:06:42]} 15. Nd2 {[%emt 0:04:28]} h6 {[%emt 0:06:37]} 16. Be3 {[%emt 0:
00:22]} e6 {[%emt 0:19:49]} 17. c4 {[%emt 0:02:17]} b5 {[%emt 0:02:02]} 18.
axb5 {[%emt 0:06:52]} axb5 {[%emt 0:00:18]} 19. b3 {[%emt 0:02:10]} exd5 {
[%emt 0:00:58]} 20. exd5 {[%emt 0:01:50]} Kh7 {[%emt 0:03:27]} 21. Rc1 {
[%emt 0:01:18]} Qd7 {[%emt 0:06:35]} 22. Qc2 {[%emt 0:02:22]} Ra8 {[%emt 0:01:
58]} 23. Kh2 {[%emt 0:00:45]} b4 {[%emt 0:06:05]} 24. Bf4 {[%emt 0:00:47]} Nh5
{[%emt 0:01:15]} 25. Rxe8 {[%emt 0:00:47]} Rxe8 {[%emt 0:01:19]} 26. Be3 {
[%emt 0:00:22]} f5 {[%emt 0:01:01]} 27. Bf3 {[%emt 0:01:26]} Nf6 {[%emt 0:01:
39]} 28. Bg2 {[%emt 0:01:18]} Bc8 {[%emt 0:01:40]} 29. Qa2 {[%emt 0:00:57]} Nh5
{[%emt 0:01:01]} 30. Nf1 {[%emt 0:03:33]} f4 {[%emt 0:00:58]} 31. gxf4 {
[%emt 0:00:16]} Rf8 {[%emt 0:00:39]} 32. f5 {[%emt 0:03:37]} Qxf5 {[%emt 0:01:
43]} 33. Qc2 {[%emt 0:00:46]} Qe5+ {[%emt 0:01:18]} 34. Kg1 {[%emt 0:00:13]}
Nf4 {[%emt 0:01:41]} 35. Bxf4 {[%emt 0:00:15]} Qxf4 {[%emt 0:00:48]} 36. Re1 {
[%emt 0:00:26]} Bf5 {[%emt 0:02:28]} 37. Qd2 {[%emt 0:00:33]} Qh4 {[%emt 0:01:
31]} 38. Qe3 {[%emt 0:00:28]} Bd7 {[%emt 0:03:36]} 39. Qg3 {[%emt 0:00:44]} Qf6
{[%emt 0:00:49]} 40. Re3 {[%emt 0:00:54]} Bf5 {[%emt 0:00:38]} 41. Be4 {
[%emt 0:09:33]} Qb2 {[%emt 0:04:03]} 42. Bg2 {[%emt 0:11:29]} Be5 {[%emt 0:02:
37]} 43. Qf3 {[%emt 0:02:04]} Kg8 {[%emt 0:11:55]} 44. Qe2 {[%emt 0:01:39]} Qa1
{[%emt 0:03:24]} 45. Qe1 {[%emt 0:04:20]} Qd4 {[%emt 0:02:40]} 46. Ng3 {
[%emt 0:01:18]} Ra8 {[%emt 0:03:14]} 47. Qe2 {[%emt 0:02:54]} Ra1+ {[%emt 0:00:
42]} 48. Nf1 {[%emt 0:00:06]} Qf4 {[%emt 0:01:35]} 49. Rg3 {[%emt 0:00:09]} Kh7
{[%emt 0:00:48]} 50. Kh1 {[%emt 0:01:20]} h5 {[%emt 0:01:55]} 51. Qe3 {[%emt 0:
00:12]} h4 {[%emt 0:00:19]} 52. Qxf4 {[%emt 0:00:23]} Bxf4 {[%emt 0:00:09]} 53.
Rf3 {[%emt 0:00:11]} g5 {[%emt 0:00:14]} 54. Kg1 {[%emt 0:00:57]} Kg7 {[%emt 0:
00:42]} 55. Bh1 {[%emt 0:00:35]} Kf6 {[%emt 0:00:53]} 56. Bg2 {[%emt 0:00:04]}
Ke5 {[%emt 0:00:35]} 57. Bh1 {[%emt 0:01:16]} Be4 {[%emt 0:00:41]} 58. Bg2 {
[%emt 0:00:31]} Rb1 {[%emt 0:00:37]} 0-1

[Event "23rd ETCC Women 2021"]
[Site "Catez"]
[Date "2021.11.14"]
[Round "3.39"]
[White "Sucikova, Svetlana"]
[Black "Machlik, Edit"]
[Result "1-0"]
[ECO "E00"]
[WhiteElo "2197"]
[BlackElo "2087"]
[Annotator "NA"]
[PlyCount "105"]
[EventDate "2021.11.08"]
[EventType "team-tourn"]
[EventCountry "SLO"]
[SourceTitle "playchess.com"]
[Source "ChessBase"]
[SourceQuality "1"]
[WhiteTeam "Slovakia"]
[BlackTeam "Norway"]
[WhiteTeamCountry "SVK"]
[BlackTeamCountry "NOR"]
[TimeControl "40/5400+30:1800+30"]

1. d4 {[%emt 0:01:46]} Nf6 {[%emt 0:00:35]} 2. c4 {[%emt 0:01:28]} e6 {[%emt 0:
00:34]} 3. g3 {[%emt 0:01:22]} Bb4+ {[%emt 0:03:03]} 4. Bd2 {[%emt 0:00:48]} a5
{[%emt 0:00:38]} 5. Bg2 {[%emt 0:01:15]} d6 {[%emt 0:02:23]} 6. e4 {[%emt 0:01:
47]} e5 {[%emt 0:07:45]} 7. Ne2 {[%emt 0:01:26]} Nc6 {[%emt 0:03:16]} 8. d5 {
[%emt 0:04:10]} Ne7 {[%emt 0:00:53]} 9. Nbc3 {[%emt 0:02:11]} O-O {[%emt 0:01:
40]} 10. O-O {[%emt 0:01:21]} Bc5 {[%emt 0:16:43]} 11. h3 {[%emt 0:04:36]} c6 {
[%emt 0:03:19]} 12. Kh2 {[%emt 0:03:49]} Ng6 {[%emt 0:14:41]} 13. Nc1 {[%emt 0:
06:44]} Bd4 {[%emt 0:07:38]} 14. Nd3 {[%emt 0:01:52]} Nd7 {[%emt 0:07:35]} 15.
Ne2 {[%emt 0:04:17]} Bb6 {[%emt 0:02:35]} 16. Qa4 {[%emt 0:01:51]} Ne7 {
[%emt 0:06:27]} 17. Rac1 {[%emt 0:04:48]} Nc5 {[%emt 0:02:37]} 18. Nxc5 {
[%emt 0:03:13]} Bxc5 {[%emt 0:00:15]} 19. b4 {[%emt 0:05:39]} Ba7 {[%emt 0:03:
28]} 20. a3 {[%emt 0:06:51]} Bd7 {[%emt 0:03:24]} 21. Qb3 {[%emt 0:00:53]} cxd5
{[%emt 0:07:02]} 22. exd5 {[%emt 0:02:44]} axb4 {[%emt 0:00:26]} 23. axb4 {
[%emt 0:00:26]} Nf5 {[%emt 0:00:41]} 24. Qd3 {[%emt 0:01:48]} Rc8 {[%emt 0:01:
16]} 25. f4 {[%emt 0:06:11]} Nd4 {[%emt 0:00:58]} 26. fxe5 {[%emt 0:00:41]}
dxe5 {[%emt 0:00:39]} 27. Ra1 {[%emt 0:03:36]} Bb6 {[%emt 0:01:36]} 28. Bc3 {
[%emt 0:08:41]} Bf5 {[%emt 0:01:06]} 29. Rxf5 {[%emt 0:02:44]} Nxf5 {[%emt 0:
00:02]} 30. Qxf5 {[%emt 0:00:07]} Rxc4 {[%emt 0:00:03]} 31. Be4 {[%emt 0:00:09]
} g6 {[%emt 0:00:56]} 32. Qxe5 {[%emt 0:00:02]} f6 {[%emt 0:00:50]} 33. Qe6+ {
[%emt 0:00:05]} Kg7 {[%emt 0:00:16]} 34. d6 {[%emt 0:01:11]} Rxe4 {[%emt 0:01:
17]} 35. Qxe4 {[%emt 0:00:14]} Qxd6 {[%emt 0:00:04]} 36. Nf4 {[%emt 0:01:05]}
Kg8 {[%emt 0:00:53]} 37. Qc4+ {[%emt 0:01:36]} Kh8 {[%emt 0:00:15]} 38. Nd5 {
[%emt 0:00:04]} Bf2 {[%emt 0:00:41]} 39. Nf4 Bxg3+ {[%emt 0:00:35]} 40. Kxg3 {
[%emt 0:10:22]} g5 {[%emt 0:00:13]} 41. Kf3 {[%emt 0:35:00]} gxf4 {[%emt 0:02:
52]} 42. Rg1 {[%emt 0:00:00]} b5 {[%emt 0:14:31]} 43. Qc5 {[%emt 0:00:00]} Qd8
{[%emt 0:00:43]} 44. Qd4 {[%emt 0:00:00]} Qa8+ {[%emt 0:00:27]} 45. Kxf4 {
[%emt 0:00:00]} Qc6 {[%emt 0:00:53]} 46. Qc5 {[%emt 0:00:00]} Qe8 {[%emt 0:00:
07]} 47. Qd6 {[%emt 0:00:00]} Qf7 {[%emt 0:00:41]} 48. Bd4 {[%emt 0:00:00]} h6
{[%emt 0:02:31]} 49. Rg6 {[%emt 0:00:00]} Qxg6 {[%emt 0:00:15]} 50. Qxf8+ {
[%emt 0:00:00]} Kh7 {[%emt 0:00:07]} 51. Bxf6 {[%emt 0:00:00]} Qg5+ {[%emt 0:
00:58]} 52. Bxg5 {[%emt 0:00:00]} hxg5+ {[%emt 0:00:03]} 53. Ke4 {[%emt 0:00:
00]} 1-0

[Event "23rd ETCC Women 2021"]
[Site "Catez"]
[Date "2021.11.14"]
[Round "3.40"]
[White "Rodsmoen, Maud"]
[Black "Mrvova, Alena"]
[Result "1-0"]
[ECO "B43"]
[WhiteElo "1953"]
[BlackElo "2174"]
[Annotator "ChessBase"]
[PlyCount "139"]
[EventDate "2021.11.08"]
[EventType "team-tourn"]
[EventCountry "SLO"]
[SourceTitle "playchess.com"]
[Source "ChessBase"]
[SourceQuality "1"]
[WhiteTeam "Norway"]
[BlackTeam "Slovakia"]
[WhiteTeamCountry "NOR"]
[BlackTeamCountry "SVK"]
[TimeControl "40/5400+30:1800+30"]

1. e4 {[%emt 0:00:04]} c5 {[%emt 0:00:27]} 2. Nf3 {[%emt 0:00:07]} e6 {[%emt 0:
00:26]} 3. d4 {[%emt 0:00:24]} cxd4 {[%emt 0:00:27]} 4. Nxd4 {[%emt 0:00:04]}
a6 {[%emt 0:00:24]} 5. Nc3 {[%emt 0:02:49]} Qc7 {[%emt 0:01:07]} 6. Be2 {
[%emt 0:02:50]} Nf6 {[%emt 0:00:46]} 7. O-O {[%emt 0:04:38]} b5 {[%emt 0:02:49]
} 8. Bf3 {[%emt 0:10:24]} Nc6 {[%emt 0:08:14]} 9. e5 {[%emt 0:09:18]} b4 {
[%emt 0:05:39]} 10. Na4 {[%emt 0:06:48]} Ng8 {[%emt 0:03:14]} 11. Nxc6 {
[%emt 0:07:19]} dxc6 {[%emt 0:00:04]} 12. Be3 {[%emt 0:02:35]} Rb8 {[%emt 0:05:
31]} 13. Nc5 {[%emt 0:06:31]} Rb5 {[%emt 0:05:18]} 14. Ne4 {[%emt 0:05:31]}
Qxe5 {[%emt 0:06:15]} 15. c4 {[%emt 0:03:02]} bxc3 {[%emt 0:21:57]} 16. Nxc3 {
[%emt 0:00:25]} Bd7 {[%emt 0:01:11]} 17. Nxb5 {[%emt 0:01:47]} Qxb5 {[%emt 0:
00:27]} 18. a4 {[%emt 0:09:41]} Qb7 {[%emt 0:01:27]} 19. Bd4 {[%emt 0:01:13]}
Nf6 {[%emt 0:01:33]} 20. Bxf6 {[%emt 0:02:05]} gxf6 {[%emt 0:00:07]} 21. Qd4 {
[%emt 0:01:27]} e5 {[%emt 0:00:36]} 22. Rfe1 {[%emt 0:00:56]} Be7 {[%emt 0:00:
57]} 23. Qd3 {[%emt 0:01:20]} Bb4 {[%emt 0:04:05]} 24. Red1 {[%emt 0:02:21]}
Ke7 {[%emt 0:00:16]} 25. Rac1 {[%emt 0:01:03]} Rc8 {[%emt 0:01:59]} 26. Qxh7 {
[%emt 0:01:52]} Be6 {[%emt 0:02:15]} 27. Qc2 {[%emt 0:01:06]} f5 {[%emt 0:02:
40]} 28. Be2 {[%emt 0:07:16]} a5 {[%emt 0:06:34]} 29. Bc4 {[%emt 0:01:01]} Bd7
{[%emt 0:03:44]} 30. Qe2 {[%emt 0:00:33]} Qc7 {[%emt 0:01:08]} 31. Qh5 {
[%emt 0:00:58]} Rf8 {[%emt 0:00:15]} 32. Qg5+ {[%emt 0:00:54]} Ke8 {[%emt 0:00:
44]} 33. Bb5 {[%emt 0:02:58]} f6 {[%emt 0:04:32]} 34. Qh5+ {[%emt 0:01:58]} Ke7
{[%emt 0:00:21]} 35. Bc4 {[%emt 0:02:05]} Bd6 {[%emt 0:06:02]} 36. Qh7+ {
[%emt 0:01:22]} Kd8 {[%emt 0:00:06]} 37. g3 {[%emt 0:00:46]} f4 {[%emt 0:00:46]
} 38. Qd3 {[%emt 0:00:24]} Ke7 {[%emt 0:00:16]} 39. Re1 {[%emt 0:00:51]} f5 {
[%emt 0:00:22]} 40. Rcd1 {[%emt 0:01:04]} e4 {[%emt 0:01:14]} 41. Qe2 {[%emt 0:
11:45]} Rh8 {[%emt 0:02:00]} 42. g4 {[%emt 0:05:54]} Be5 {[%emt 0:11:00]} 43.
f3 {[%emt 0:02:44]} Rh3 {[%emt 0:07:00]} 44. Rf1 {[%emt 0:02:24]} e3 {[%emt 0:
01:24]} 45. g5 {[%emt 0:00:52]} Be8 {[%emt 0:01:35]} 46. Qg2 {[%emt 0:03:03]}
Rh7 {[%emt 0:00:06]} 47. Rd3 {[%emt 0:00:59]} Qb6 {[%emt 0:05:09]} 48. Kh1 {
[%emt 0:00:21]} c5 {[%emt 0:01:49]} 49. Rd5 {[%emt 0:01:01]} Bd4 {[%emt 0:00:
31]} 50. Rxf5 {[%emt 0:01:35]} Bg6 {[%emt 0:00:23]} 51. Rd5 {[%emt 0:00:25]}
Bf7 {[%emt 0:02:39]} 52. g6 {[%emt 0:02:11]} Qxg6 {[%emt 0:01:32]} 53. Qxg6 {
[%emt 0:00:44]} Bxg6 {[%emt 0:00:04]} 54. Rg5 {[%emt 0:01:25]} Be8 {[%emt 0:02:
23]} 55. b3 {[%emt 0:00:05]} Bd7 {[%emt 0:00:33]} 56. Rg6 {[%emt 0:00:51]} Rh5
{[%emt 0:00:44]} 57. Bb5 {[%emt 0:01:16]} Bf5 {[%emt 0:01:18]} 58. Ra6 {
[%emt 0:00:29]} Bc3 {[%emt 0:00:15]} 59. Rc1 {[%emt 0:00:36]} Bb4 {[%emt 0:00:
29]} 60. Rd1 {[%emt 0:00:45]} Bd2 {[%emt 0:00:17]} 61. Rg1 {[%emt 0:00:39]} Be6
{[%emt 0:00:47]} 62. Rg7+ {[%emt 0:00:18]} Kf6 {[%emt 0:00:04]} 63. Rc7 {
[%emt 0:00:35]} Re5 {[%emt 0:00:39]} 64. Be2 {[%emt 0:00:15]} Kf5 {[%emt 0:01:
58]} 65. Kg2 {[%emt 0:00:31]} Bc3 {[%emt 0:00:19]} 66. Rcc6 {[%emt 0:00:26]}
Rd5 {[%emt 0:01:12]} 67. Rxe6 {[%emt 0:00:19]} Rd2 {[%emt 0:00:03]} 68. Kf1 {
[%emt 0:00:06]} Rd8 {[%emt 0:00:38]} 69. Rh6 {[%emt 0:00:16]} Kg5 {[%emt 0:00:
07]} 70. h4+ {[%emt 0:00:06]} 1-0

[Event "23rd ETCC Women 2021"]
[Site "Catez"]
[Date "2021.11.14"]
[Round "3.41"]
[White "Zaksaite, Salomeja"]
[Black "Cramling, Pia"]
[Result "0-1"]
[ECO "B80"]
[WhiteElo "2250"]
[BlackElo "2457"]
[Annotator "ChessBase"]
[PlyCount "114"]
[EventDate "2021.11.08"]
[EventType "team-tourn"]
[EventCountry "SLO"]
[SourceTitle "playchess.com"]
[Source "ChessBase"]
[SourceQuality "1"]
[WhiteTeam "Lithuania"]
[BlackTeam "Sweden"]
[WhiteTeamCountry "LTU"]
[BlackTeamCountry "SWE"]
[TimeControl "40/5400+30:1800+30"]

1. e4 {[%emt 0:00:02]} c5 {[%emt 0:00:06]} 2. Nf3 {[%emt 0:00:28]} e6 {[%emt 0:
00:40]} 3. d4 {[%emt 0:00:14]} cxd4 {[%emt 0:00:07]} 4. Nxd4 {[%emt 0:00:01]}
Nc6 {[%emt 0:00:12]} 5. Nc3 {[%emt 0:00:09]} a6 {[%emt 0:00:17]} 6. g3 {
[%emt 0:03:59]} d6 {[%emt 0:06:14]} 7. Bg2 {[%emt 0:00:07]} Bd7 {[%emt 0:00:31]
} 8. O-O {[%emt 0:00:21]} Nf6 {[%emt 0:00:35]} 9. Be3 {[%emt 0:01:24]} Be7 {
[%emt 0:01:43]} 10. f4 {[%emt 0:18:38]} Qc7 {[%emt 0:06:34]} 11. Nb3 {[%emt 0:
00:54]} Rb8 {[%emt 0:13:25]} 12. Kh1 {[%emt 0:02:19]} b5 {[%emt 0:03:48]} 13.
a3 {[%emt 0:22:20]} b4 {[%emt 0:13:54]} 14. axb4 {[%emt 0:01:50]} Nxb4 {
[%emt 0:00:08]} 15. e5 {[%emt 0:00:56]} dxe5 {[%emt 0:04:09]} 16. fxe5 {
[%emt 0:00:04]} Nfd5 {[%emt 0:00:10]} 17. Nxd5 {[%emt 0:01:39]} Nxd5 {[%emt 0:
00:09]} 18. Bxd5 {[%emt 0:02:57]} exd5 {[%emt 0:00:10]} 19. e6 {[%emt 0:17:24]}
Bxe6 {[%emt 0:02:37]} 20. Bf4 {[%emt 0:08:15]} Bd6 {[%emt 0:00:43]} 21. Rxa6 {
[%emt 0:00:26]} Bxf4 {[%emt 0:01:20]} 22. Rxf4 {[%emt 0:02:28]} O-O {[%emt 0:
01:51]} 23. Nd4 {[%emt 0:02:32]} Bc8 {[%emt 0:11:40]} 24. Rc6 {[%emt 0:00:08]}
Qe5 {[%emt 0:07:21]} 25. b3 {[%emt 0:03:13]} Re8 {[%emt 0:03:39]} 26. Kg2 {
[%emt 0:02:15]} Bd7 {[%emt 0:03:32]} 27. Rc3 {[%emt 0:00:59]} g5 {[%emt 0:05:
38]} 28. Rf2 {[%emt 0:03:03]} Qe4+ {[%emt 0:01:19]} 29. Kg1 {[%emt 0:01:12]}
Bg4 {[%emt 0:01:07]} 30. Qd2 {[%emt 0:00:35]} h6 {[%emt 0:01:36]} 31. Qd3 {
[%emt 0:02:50]} Ra8 {[%emt 0:03:03]} 32. Qxe4 {[%emt 0:00:03]} Rxe4 {[%emt 0:
02:56]} 33. Nf3 {[%emt 0:01:10]} Bh3 {[%emt 0:00:31]} 34. Nd2 {[%emt 0:00:50]}
Ra1+ {[%emt 0:00:47]} 35. Nf1 {[%emt 0:00:00]} Ree1 {[%emt 0:01:29]} 36. Rcf3 {
[%emt 0:00:03]} f5 {[%emt 0:00:09]} 37. Rxf5 {[%emt 0:02:17]} Bxf5 {[%emt 0:00:
10]} 38. Rxf5 {[%emt 0:00:01]} g4 {[%emt 0:01:07]} 39. Rf4 {[%emt 0:01:17]} h5
{[%emt 0:00:11]} 40. Rf5 {[%emt 0:00:25]} d4 {[%emt 0:00:29]} 41. Rf4 {[%emt 0:
09:31]} Rab1 {[%emt 0:04:11]} 42. Kg2 {[%emt 0:02:11]} Rec1 {[%emt 0:01:21]}
43. Kg1 {[%emt 0:00:35]} Kg7 {[%emt 0:00:21]} 44. Rf2 {[%emt 0:00:33]} Kg6 {
[%emt 0:00:14]} 45. Rf4 {[%emt 0:00:05]} Rd1 {[%emt 0:00:37]} 46. Rf2 {[%emt 0:
01:58]} Rb2 {[%emt 0:01:25]} 47. Rg2 {[%emt 0:06:30]} Kf6 {[%emt 0:01:06]} 48.
Rf2+ {[%emt 0:00:05]} Ke5 {[%emt 0:00:26]} 49. Re2+ {[%emt 0:00:09]} Kd6 {
[%emt 0:01:12]} 50. b4 {[%emt 0:02:24]} Rbb1 {[%emt 0:01:28]} 51. Rf2 {[%emt 0:
00:09]} Rxb4 {[%emt 0:00:30]} 52. Kg2 {[%emt 0:00:04]} Rbb1 {[%emt 0:00:29]}
53. Rf5 {[%emt 0:01:21]} Rb2 {[%emt 0:03:08]} 54. Rf2 {[%emt 0:00:28]} Rbb1 {
[%emt 0:02:12]} 55. Kg1 {[%emt 0:00:18]} Kc5 {[%emt 0:00:32]} 56. Rf5+ {
[%emt 0:00:36]} Kc4 {[%emt 0:00:53]} 57. Kg2 {[%emt 0:00:18]} Rbc1 {[%emt 0:01:
50]} 0-1

[Event "23rd ETCC Women 2021"]
[Site "Catez"]
[Date "2021.11.14"]
[Round "3.42"]
[White "Agrest, Inna"]
[Black "Baginskaite, Kamile"]
[Result "1-0"]
[ECO "B99"]
[WhiteElo "2258"]
[BlackElo "2100"]
[Annotator "NA"]
[PlyCount "91"]
[EventDate "2021.11.08"]
[EventType "team-tourn"]
[EventCountry "SLO"]
[SourceTitle "playchess.com"]
[Source "ChessBase"]
[SourceQuality "1"]
[WhiteTeam "Sweden"]
[BlackTeam "Lithuania"]
[WhiteTeamCountry "SWE"]
[BlackTeamCountry "LTU"]
[TimeControl "40/5400+30:1800+30"]

1. e4 {[%emt 0:00:13]} c5 {[%emt 0:00:44]} 2. Nf3 {[%emt 0:00:07]} d6 {[%emt 0:
00:07]} 3. d4 {[%emt 0:00:07]} cxd4 {[%emt 0:00:05]} 4. Nxd4 {[%emt 0:00:03]}
Nf6 {[%emt 0:00:08]} 5. Nc3 {[%emt 0:00:05]} a6 {[%emt 0:00:04]} 6. Bg5 {
[%emt 0:00:30]} e6 {[%emt 0:01:07]} 7. f4 {[%emt 0:00:20]} Be7 {[%emt 0:00:46]}
8. Qf3 {[%emt 0:00:42]} Qc7 {[%emt 0:00:09]} 9. O-O-O {[%emt 0:01:03]} Nbd7 {
[%emt 0:00:09]} 10. g4 {[%emt 0:02:28]} b5 {[%emt 0:02:20]} 11. Bxf6 {[%emt 0:
01:18]} Nxf6 {[%emt 0:00:08]} 12. g5 {[%emt 0:00:32]} Nd7 {[%emt 0:00:07]} 13.
f5 {[%emt 0:01:00]} O-O {[%emt 0:00:11]} 14. Rg1 {[%emt 0:06:10]} b4 {[%emt 0:
17:34]} 15. Nce2 {[%emt 0:10:52]} e5 {[%emt 0:01:11]} 16. f6 {[%emt 0:23:19]}
exd4 {[%emt 0:00:10]} 17. fxe7 {[%emt 0:09:39]} Re8 {[%emt 0:00:34]} 18. Nxd4 {
[%emt 0:07:21]} Ne5 {[%emt 0:00:38]} 19. Qh5 {[%emt 0:02:56]} Rxe7 {[%emt 0:27:
33]} 20. Rg3 {[%emt 0:01:56]} Ng6 {[%emt 0:16:37]} 21. Bd3 {[%emt 0:08:04]} d5
{[%emt 0:14:14]} 22. Nf5 {[%emt 0:10:16]} Bxf5 {[%emt 0:01:52]} 23. exf5 {
[%emt 0:00:04]} Nf4 {[%emt 0:00:06]} 24. Qf3 {[%emt 0:02:45]} Rc8 {[%emt 0:00:
15]} 25. Rg4 {[%emt 0:04:00]} Nxd3+ {[%emt 0:09:28]} 26. Qxd3 {[%emt 0:00:07]}
Re3 {[%emt 0:00:29]} 27. Qd2 {[%emt 0:01:20]} Re4 {[%emt 0:00:50]} 28. Rg2 {
[%emt 0:01:53]} Rc4 {[%emt 0:02:43]} 29. Kb1 {[%emt 0:00:38]} a5 {[%emt 0:00:
27]} 30. g6 {[%emt 0:01:43]} hxg6 {[%emt 0:02:28]} 31. fxg6 {[%emt 0:00:05]}
fxg6 {[%emt 0:01:15]} 32. Qxd5+ {[%emt 0:00:54]} Qf7 {[%emt 0:00:05]} 33. b3 {
[%emt 0:03:27]} R4c6 {[%emt 0:01:42]} 34. Qxa5 {[%emt 0:00:33]} Qf5 {[%emt 0:
00:29]} 35. Qxf5 {[%emt 0:00:46]} gxf5 {[%emt 0:00:01]} 36. Rd7 {[%emt 0:00:26]
} g6 {[%emt 0:00:37]} 37. Rb7 {[%emt 0:00:33]} f4 {[%emt 0:00:53]} 38. Rxb4 {
[%emt 0:00:09]} Rf8 {[%emt 0:00:30]} 39. Rf2 {[%emt 0:00:49]} g5 {[%emt 0:00:
33]} 40. h4 {[%emt 0:00:17]} gxh4 {[%emt 0:00:36]} 41. Rbxf4 {[%emt 0:06:18]}
Rxf4 {[%emt 0:00:08]} 42. Rxf4 {[%emt 0:00:05]} Rh6 {[%emt 0:00:04]} 43. a4 {
[%emt 0:04:42]} h3 {[%emt 0:00:23]} 44. Rf1 {[%emt 0:00:06]} h2 {[%emt 0:03:59]
} 45. Rh1 {[%emt 0:00:03]} Kf7 {[%emt 0:00:03]} 46. a5 {[%emt 0:01:27]} 1-0

[Event "23rd ETCC Women 2021"]
[Site "Catez"]
[Date "2021.11.14"]
[Round "3.43"]
[White "Simkunaite, Gabija"]
[Black "Andric, Jelena"]
[Result "1-0"]
[ECO "B09"]
[WhiteElo "1962"]
[BlackElo "2041"]
[Annotator "NA"]
[PlyCount "97"]
[EventDate "2021.11.08"]
[EventType "team-tourn"]
[EventCountry "SLO"]
[SourceTitle "playchess.com"]
[Source "ChessBase"]
[SourceQuality "1"]
[WhiteTeam "Lithuania"]
[BlackTeam "Sweden"]
[WhiteTeamCountry "LTU"]
[BlackTeamCountry "SWE"]
[TimeControl "40/5400+30:1800+30"]

1. e4 {[%emt 0:00:14]} d6 {[%emt 0:01:06]} 2. d4 {[%emt 0:00:07]} Nf6 {[%emt 0:
00:38]} 3. Nc3 {[%emt 0:00:05]} g6 {[%emt 0:01:07]} 4. f4 {[%emt 0:00:06]} Bg7
{[%emt 0:03:16]} 5. Nf3 {[%emt 0:00:05]} c6 {[%emt 0:07:05]} 6. e5 {[%emt 0:04:
49]} dxe5 {[%emt 0:02:51]} 7. fxe5 {[%emt 0:00:25]} Nd5 {[%emt 0:02:37]} 8. Bc4
{[%emt 0:06:49]} h6 {[%emt 0:18:02]} 9. O-O {[%emt 0:04:31]} O-O {[%emt 0:05:
09]} 10. Ne4 {[%emt 0:13:24]} b5 {[%emt 0:09:23]} 11. Bb3 {[%emt 0:02:09]} a5 {
[%emt 0:08:13]} 12. a4 {[%emt 0:06:33]} b4 {[%emt 0:07:45]} 13. Bd2 {[%emt 0:
06:25]} f5 {[%emt 0:07:57]} 14. exf6 {[%emt 0:03:42]} exf6 {[%emt 0:01:09]} 15.
c4 {[%emt 0:03:11]} bxc3 {[%emt 0:00:29]} 16. bxc3 {[%emt 0:00:08]} Kh7 {
[%emt 0:00:53]} 17. c4 {[%emt 0:02:27]} Nb6 {[%emt 0:02:14]} 18. c5 {[%emt 0:
06:47]} Nd5 {[%emt 0:01:55]} 19. Nd6 {[%emt 0:00:39]} Ba6 {[%emt 0:02:42]} 20.
Re1 {[%emt 0:00:50]} Ra7 {[%emt 0:01:55]} 21. Bxd5 {[%emt 0:01:00]} cxd5 {
[%emt 0:00:05]} 22. Qb3 {[%emt 0:00:11]} f5 {[%emt 0:06:40]} 23. Bc3 {[%emt 0:
05:10]} Nd7 {[%emt 0:05:03]} 24. Qxd5 {[%emt 0:01:58]} Nf6 {[%emt 0:01:36]} 25.
Qb3 {[%emt 0:04:04]} Ne4 {[%emt 0:00:21]} 26. Nxe4 {[%emt 0:07:30]} fxe4 {
[%emt 0:00:04]} 27. Rxe4 {[%emt 0:05:17]} Bb7 {[%emt 0:00:20]} 28. Rae1 {
[%emt 0:01:02]} Bxe4 {[%emt 0:00:21]} 29. Rxe4 {[%emt 0:00:06]} Raf7 {[%emt 0:
00:49]} 30. Qc2 {[%emt 0:03:01]} Qf6 {[%emt 0:01:52]} 31. Qe2 {[%emt 0:04:35]}
Qd8 {[%emt 0:01:07]} 32. Qe1 {[%emt 0:01:25]} Qd5 {[%emt 0:00:35]} 33. h3 {
[%emt 0:02:04]} g5 {[%emt 0:00:40]} 34. Kh2 {[%emt 0:01:39]} Rf4 {[%emt 0:00:
33]} 35. Rxf4 {[%emt 0:01:36]} Rxf4 {[%emt 0:00:15]} 36. Qe3 {[%emt 0:01:29]}
Re4 {[%emt 0:00:53]} 37. Qd3 {[%emt 0:00:54]} Kg8 {[%emt 0:00:13]} 38. Qa6 {
[%emt 0:00:32]} Qd8 {[%emt 0:00:37]} 39. Qb6 {[%emt 0:01:29]} Qf8 {[%emt 0:00:
19]} 40. Qc7 {[%emt 0:00:46]} Rf4 {[%emt 0:00:58]} 41. Qd7 {[%emt 0:05:01]} Rf7
{[%emt 0:25:57]} 42. Qd5 {[%emt 0:00:38]} Kh8 {[%emt 0:00:22]} 43. Ne5 {
[%emt 0:00:37]} Bxe5+ {[%emt 0:01:50]} 44. Qxe5+ {[%emt 0:00:07]} Kg8 {[%emt 0:
03:06]} 45. d5 {[%emt 0:00:12]} Rf1 {[%emt 0:00:34]} 46. d6 {[%emt 0:02:09]}
Rd1 {[%emt 0:00:31]} 47. Qh8+ {[%emt 0:02:06]} Kf7 {[%emt 0:00:04]} 48. Qf6+ {
[%emt 0:00:05]} Ke8 {[%emt 0:00:48]} 49. Qe6+ {[%emt 0:00:05]} 1-0